[Event "Gibraltar Challengers B 2019"]
[Site "Caleta"]
[Date "2019.01.28"]
[Round "3"]
[White "Teh, Wee Zhun"]
[Black "Kozarcanin, Sead"]
[Result "0-1"]
[ECO "D15"]
[WhiteElo "1818"]
[BlackElo "2048"]
[Annotator "NA RC"]
[PlyCount "64"]
[EventDate "2019.01.18"]
[EventType "swiss"]
[EventCountry "GGB"]
[SourceTitle "playchess.com"]
[Source "ChessBase"]
[SourceQuality "1"]
[TimeControl "6600+10"]

{[%evp 8,64,23,32767,32767,32767,32767,32767,32767,32767,32767,32767,29,32767,32767,0,39,32767,32767,32767,32767,32767,32767,-12,-35,32767,-45,32767,32767,32767,32767,32767,-60,32767,32767,32767,32767,-61,32767,32767,-73,-100,-109,32767,-176,-189,-129,-196,32767,-198,-119,-131,-106,-29982,-29985,-29997,-29998,-29998,-29999]} 1. d4 {[%emt 0:00:00]} d5 {[%emt 0:00:55]} 2. c4 {[%emt 0:00:17]} c6 {[%emt 0:00:02]} 3. Nc3 {[%emt 0:00:11]} Nf6 {[%emt 0:00:22]} 4. e3 {[%emt 0:00:12]} a6 {[%emt 0:00:13]} 5. Nf3 {[%emt 0:00:28]} b5 {[%emt 0:01:05]} 6. b3 {[%emt 0:00:23]} Bg4 {[%emt 0:02:05]} 7. Be2 {[%emt 0:04:11]} e6 {[%emt 0:00:13]} 8. O-O {[%emt 0:12:45]} Nbd7 {[%emt 0:01:04]} 9. a4 {[%emt 0:05:40] D15: Slav Defence: 4 Nc3 a6 and gambit lines after 4 Nc3 dxc4} (9. Bb2 Qb8 10. c5 a5 11. h3 Bh5 12. a3 Be7 13. b4 a4 14. Ne5 Nxe5 15. dxe5 Qxe5 16. Nxa4 Bxe2 17. Qxe2 {0-1 (42) Ni,H (2671)-Laznicka,V (2647) Riadh 2017}) 9... b4 {[%emt 0:09:44] LiveBook: 7 Games} 10. Nb1 {[%emt 0:02:10]} Ne4 {[%emt 0:00:27]} 11. h3 {[%emt 0:06:58]} Bh5 {[%emt 0:04:17]} (11... Bf5 $11) 12. c5 $146 {[%emt 0:03:12]} ({Predecessor:} 12. a5 Bd6 13. Ra4 Bc7 14. Rxb4 O-O 15. Ra4 Bxa5 16. c5 Bc7 17. Nfd2 Bxe2 18. Qxe2 Nxd2 19. Nxd2 {½-½ (43) Chirivi Castiblanco,J (2250)-Mateus,M (2140) Quibdo 2015}) 12... a5 {[%emt 0:02:29]} 13. Bb2 {[%emt 0:05:56]} Be7 {[%emt 0:07:42]} 14. Qc2 {[%emt 0:04:39]} Qc7 {[%emt 0:04:43]} 15. Nbd2 {[%emt 0:02:46]} f5 {[%emt 0:00:39]} 16. Rae1 {[%emt 0:02:41]} O-O {[%emt 0:01:10]} 17. Nxe4 {[%emt 0:04:07]} fxe4 {[%emt 0:00:48]} 18. Ng5 {[%emt 0:01:25]} Bxg5 {[%emt 0:01:09]} 19. Bxh5 {[%emt 0:00:02]} Nf6 {[%emt 0:06:09]} 20. Bd1 {[%emt 0:02:54]} Nd7 {[%emt 0:05:24]} 21. Bg4 {[%emt 0:07:09]} Rae8 {[%emt 0:00:24]} 22. Qd1 {[%emt 0:20:33]} Bf6 {[%emt 0:01:07]} 23. Qa1 {[%emt 0:07:36]} Rf7 {[%emt 0:01:07]} 24. Qc1 {[%emt 0:04:23]} g6 {[%emt 0:01:51]} 25. f4 {[%emt 0:06:00]} exf3 {[%emt 0:04:03]} 26. Bxf3 {[%emt 0:00:32]} Bh4 {[%emt 0:01:14]} 27. Rd1 {[%emt 0:03:35]} (27. e4 $17 {might work better.}) 27... Qg3 {[%emt 0:07:40]} 28. Qd2 {[%emt 0:02:08]} Nf6 {[%emt 0:01:48]} ({Black should try} 28... Ref8 $19 29. Qe2 Bg5) 29. Qe2 {[%emt 0:00:30]} Ref8 {[%emt 0:02:36]} 30. Bg4 $2 {[%emt 0:01:07]} (30. Bc1 $19) 30... Nxg4 {[%emt 0:00:54]} 31. Qxg4 {[%emt 0:00:28]} Rxf1+ {[%emt 0:00:11]} 32. Rxf1 {[%emt 0:00:03]} Rxf1+ {[%emt 0:00:09]} 0-1

[Event "Gibraltar Challengers B 2019"]
[Site "Caleta"]
[Date "2019.01.28"]
[Round "3"]
[White "Livesey, R Nigel"]
[Black "Garcia Lopez, Juan Antonio"]
[Result "0-1"]
[ECO "A24"]
[WhiteElo "1797"]
[BlackElo "1964"]
[Annotator "NA"]
[PlyCount "104"]
[EventDate "2019.01.18"]
[EventType "swiss"]
[EventCountry "GGB"]
[SourceTitle "playchess.com"]
[Source "ChessBase"]
[SourceQuality "1"]
[TimeControl "6600+10"]

1. c4 {[%emt 0:00:00]} e5 {[%emt 0:00:00]} 2. g3 {[%emt 0:00:00]} Nf6 {[%emt 0:00:00]} 3. Bg2 {[%emt 0:00:04]} d6 {[%emt 0:00:01]} 4. Nc3 {[%emt 0:00:09]} g6 {[%emt 0:00:06]} 5. d3 {[%emt 0:00:45]} Bg7 {[%emt 0:00:04]} 6. e4 {[%emt 0:00:04]} O-O {[%emt 0:00:06]} 7. Nge2 {[%emt 0:00:06]} Nbd7 {[%emt 0:00:12]} 8. O-O {[%emt 0:00:13]} Nc5 {[%emt 0:00:20] A24: English Opening vs King's Indian: Lines without ...Nc6} (8... c6 9. h3 a6 10. a4 a5 11. Be3 Nc5 12. f4 Qe7 13. Qc2 Bd7 14. Rae1 Rfe8 15. Rf2 h6 16. Ref1 Kh7 17. Kh2 Ne6 {1-0 (47) Vishnu,P (2510)-Arjun,K (2397) Sharjah 2018}) 9. b4 {[%emt 0:00:46]} Ne6 {[%emt 0:00:07]} 10. h3 {[%emt 0:00:49]} a5 $146 {[%emt 0:00:24]} ({Predecessor:} 10... c6 11. Kh2 Nh5 12. Bf3 Nf6 13. Qb3 a5 14. bxa5 Nc5 15. Qc2 Rxa5 16. h4 {½-½ (25) Shushunov,A (1429)-Popov,M (1831) Voronezh 2018}) 11. b5 {[%emt 0:02:11]} Nc5 {[%emt 0:01:58]} 12. Be3 {[%emt 0:00:36]} Nfd7 {[%emt 0:01:34]} 13. Qd2 {[%emt 0:05:40]} f5 {[%emt 0:00:24]} 14. Bg5 {[%emt 0:00:47]} Nf6 {[%emt 0:00:11]} 15. Nd5 {[%emt 0:00:37]} Ne6 {[%emt 0:01:17]} 16. Bxf6 {[%emt 0:00:50]} Bxf6 {[%emt 0:00:13]} 17. Nxf6+ {[%emt 0:00:10]} Qxf6 {[%emt 0:00:28]} 18. f4 {[%emt 0:00:39]} Kh8 {[%emt 0:01:57]} 19. Kh2 {[%emt 0:01:25]} Qg7 {[%emt 0:04:29]} 20. exf5 {[%emt 0:02:31]} gxf5 {[%emt 0:01:14]} 21. Rae1 {[%emt 0:04:35]} Nc5 {[%emt 0:03:59]} 22. fxe5 {[%emt 0:02:14]} dxe5 {[%emt 0:00:39]} 23. d4 {[%emt 0:00:24]} exd4 {[%emt 0:01:06]} 24. Qxd4 {[%emt 0:01:43]} Qxd4 {[%emt 0:03:35]} 25. Nxd4 {[%emt 0:00:35]} Bd7 {[%emt 0:00:30]} 26. Re5 {[%emt 0:03:05]} Nd3 {[%emt 0:02:39]} 27. Rd5 {[%emt 0:02:42]} Rad8 {[%emt 0:00:54]} 28. Nxf5 {[%emt 0:01:15]} Nb4 {[%emt 0:00:19]} 29. Rd2 {[%emt 0:02:03]} (29. Rd4 $5 {[%cal Rf5e3]}) 29... Bxf5 {[%emt 0:00:22]} 30. Rxd8 {[%emt 0:01:30]} Rxd8 {[%emt 0:00:03]} 31. Rxf5 {[%emt 0:00:12]} Nxa2 {[%emt 0:00:04]} 32. Rf2 {[%emt 0:01:46]} Nc3 {[%emt 0:00:19]} 33. Bxb7 {[%emt 0:00:59]} a4 {[%emt 0:00:40]} 34. Bd5 {[%emt 0:04:58]} Nxd5 {[%emt 0:02:19]} 35. Rd2 {[%emt 0:00:18] Pin} Kg7 {[%emt 0:00:27]} 36. cxd5 {[%emt 0:00:34]} Kf6 {[%emt 0:00:21]} 37. Ra2 {[%emt 0:01:14]} Ra8 {[%emt 0:00:15]} 38. d6 {[%emt 0:00:36]} cxd6 {[%emt 0:00:19]} 39. b6 {[%emt 0:00:16]} Ke5 {[%emt 0:00:42]} 40. b7 {[%emt 0:00:32]} Rb8 {[%emt 0:00:06]} 41. Rxa4 {[%emt 0:00:09]} Rxb7 {[%emt 0:00:10]} 42. g4 {[%emt 0:00:12]} d5 {[%emt 0:00:32]} 43. h4 {[%emt 0:00:52] [#]} d4 $2 {[%emt 0:00:25]} ({Black should try} 43... Rf7 $1 $19 44. g5 d4 45. Ra5+ Ke4) 44. Kg3 {[%emt 0:00:51]} Rf7 {[%emt 0:01:00]} 45. g5 {[%emt 0:00:39]} d3 {[%emt 0:00:01]} 46. Ra5+ {[%emt 0:00:38]} Ke4 {[%emt 0:00:11]} 47. Ra4+ {[%emt 0:00:39]} Ke3 {[%emt 0:00:10]} 48. Ra6 {[%emt 0:01:15]} Re7 {[%emt 0:02:35]} 49. Kg4 {[%emt 0:08:14]} Re4+ {[%emt 0:01:02]} 50. Kh5 {[%emt 0:00:28]} d2 {[%emt 0:00:03]} 51. Ra3+ {[%emt 0:01:42]} Ke2 {[%emt 0:00:16]} 52. Ra2 {[%emt 0:00:34]} Ke1 {[%emt 0:00:08] Kg4 [%emt 00:03:59] Rf4+ [%emt 00:00:04] Kf5 [%emt 00:00:01]} 0-1

[Event "Gibraltar Challengers B 2019"]
[Site "Caleta"]
[Date "2019.01.28"]
[Round "3"]
[White "Diaz Mino, Daniel"]
[Black "Lutz, Juergen"]
[Result "1/2-1/2"]
[ECO "B21"]
[WhiteElo "1769"]
[BlackElo "1960"]
[Annotator "NA RC"]
[PlyCount "112"]
[EventDate "2019.01.18"]
[EventType "swiss"]
[EventCountry "GGB"]
[SourceTitle "playchess.com"]
[Source "ChessBase"]
[SourceQuality "1"]
[TimeControl "6600+10"]

1. e4 {[%emt 0:00:53]} c5 {[%emt 0:01:57]} 2. d4 {[%emt 0:00:00]} cxd4 {[%emt 0:00:14]} 3. c3 {[%emt 0:00:00]} dxc3 {[%emt 0:00:06]} 4. Nxc3 {[%emt 0:00:00]} Nc6 {[%emt 0:00:54]} 5. Bc4 {[%emt 0:00:00]} e6 {[%emt 0:00:03]} 6. Nf3 {[%emt 0:00:34]} Qc7 {[%emt 0:00:25] LiveBook: 74 Games} 7. O-O {[%emt 0:02:07]} Nf6 {[%emt 0:00:12]} 8. Qe2 {[%emt 0:01:34]} Ng4 {[%emt 0:00:07]} 9. Nb5 {[%emt 0:00:32]} Qb8 {[%emt 0:00:01]} 10. h3 {[%emt 0:00:39]} h5 {[%emt 0:29:22]} 11. e5 {[%emt 0:07:07] B21: Sicilian: 2 f4 and Morra Gambit} (11. Bxe6 $2 {[%mdl 8192]}) (11. Qd2 $11) 11... a6 {[%emt 0:04:58]} 12. Nbd4 $146 {[%emt 0:31:51]} ({Predecessor:} 12. Nd6+ $1 $11 Bxd6 13. exd6 Qxd6 14. Rd1 Qc7 15. b3 b5 16. Bd5 Nf6 17. Ba3 Bb7 18. Rac1 Qf4 19. Bxc6 Bxc6 {1-0 (32) Radulski,J (2580)-Can,E (2471) Ankara 2009}) 12... Ngxe5 13. Nxe5 {[%emt 0:01:58]} Qxe5 {[%emt 0:00:00]} 14. Nxc6 {[%emt 0:02:35]} Qxe2 {[%emt 0:00:00]} 15. Bxe2 {[%emt 0:00:00]} dxc6 {[%emt 0:00:00]} 16. b3 {[%emt 0:00:00]} e5 {[%emt 0:00:00]} 17. Bb2 {[%emt 0:00:00] f} f6 {[%emt 0:00:00]} 18. Rfe1 {[%emt 0:00:41]} Bb4 {[%emt 0:00:00]} 19. Red1 {[%emt 0:00:31]} Be6 {[%emt 0:02:16]} 20. Rd3 {[%emt 0:03:12]} Rd8 {[%emt 0:04:01]} 21. Rad1 {[%emt 0:02:54]} Rxd3 {[%emt 0:00:03]} 22. Rxd3 {[%emt 0:00:10]} h4 {[%emt 0:05:03]} 23. a3 {[%emt 0:05:55]} Be7 {[%emt 0:06:04]} 24. Rf3 {[%emt 0:00:10]} O-O {[%emt 0:03:26]} 25. b4 {[%emt 0:06:26]} Rd8 {[%emt 0:05:02]} 26. Bc3 {[%emt 0:00:22]} Bd5 {[%emt 0:00:00]} 27. Re3 {[%emt 0:06:54]} e4 {[%emt 0:02:50]} 28. Bg4 {[%emt 0:04:29]} g6 {[%emt 0:00:09]} 29. f3 {[%emt 0:00:00]} f5 {[%emt 0:05:57]} 30. fxe4 {[%emt 0:00:34]} Bxe4 {[%emt 0:04:31]} 31. Be2 {[%emt 0:03:09]} b5 {[%emt 0:00:27]} 32. Bf1 {[%emt 0:06:18]} Rd1 {[%emt 0:08:50]} 33. Re1 {[%emt 0:02:39]} Rxe1 {[%emt 0:00:00]} 34. Bxe1 {[%emt 0:00:09]} Bf6 {[%emt 0:00:24]} 35. Kf2 {[%emt 0:02:15]} Bb2 {[%emt 0:00:00]} 36. Ke3 {[%emt 0:06:50]} Kf7 {[%emt 0:00:21]} 37. Bxh4 {[%emt 0:00:00]} Bxa3 {[%emt 0:04:14]} 38. Be1 {[%emt 0:00:00]} c5 {[%emt 0:00:02]} 39. bxc5 {[%emt 0:00:00]} Bxc5+ {[%emt 0:00:17]} 40. Kf4 {[%emt 0:08:41]} Bd4 {[%emt 0:04:52]} 41. g3 {[%emt 0:00:00]} Kf6 {[%emt 0:07:34]} 42. h4 {[%emt 0:00:00]} Be5+ {[%emt 0:00:06]} 43. Ke3 {[%emt 0:00:41]} Ke6 {[%emt 0:01:20]} 44. Be2 {[%emt 0:00:10]} Kd5 {[%emt 0:03:23]} 45. h5 {[%emt 0:00:00]} gxh5 {[%emt 0:00:00]} 46. Bxh5 {[%emt 0:01:01]} b4 $2 {[%emt 0:00:00]} (46... Kc5 $19 47. Bd1 Bd5) 47. Bxb4 {[%emt 0:00:00]} Bxg3 {[%emt 0:00:00]} 48. Be2 $1 {[%emt 0:01:17]} f4+ {[%emt 0:01:00]} 49. Kd2 {[%emt 0:04:24]} f3 {[%emt 0:04:18]} 50. Bxa6 {[%emt 0:00:00]} Kd4 {[%emt 0:00:02]} 51. Bc3+ {[%emt 0:00:59]} Kc5 {[%emt 0:01:43]} 52. Ke3 {[%emt 0:00:00]} Bd5 {[%emt 0:00:06] [#]} 53. Be2 $1 {[%emt 0:00:00]} f2 $11 {[%emt 0:00:00]} 54. Bd4+ {[%emt 0:00:00]} Kb4 {[%emt 0:00:44]} 55. Kd2 {[%emt 0:00:00]} Bf4+ {[%emt 0:00:34]} 56. Be3 {[%emt 0:00:17]} Bxe3+ {[%emt 0:00:00]} 1/2-1/2

[Event "Gibraltar Challengers B 2019"]
[Site "Caleta"]
[Date "2019.01.29"]
[Round "4"]
[White "Meszaros, Andras"]
[Black "Berrocal Ruiz, Valentin"]
[Result "1-0"]
[ECO "B06"]
[WhiteElo "2226"]
[BlackElo "2127"]
[Annotator "NA RC"]
[PlyCount "105"]
[EventDate "2019.01.18"]
[EventType "swiss"]
[EventCountry "GGB"]
[SourceTitle "playchess.com"]
[Source "ChessBase"]
[SourceQuality "1"]
[TimeControl "6600+10"]

{[%evp 33,105,7,49,32767,32767,-2,32767,0,-12,32767,32767,49,59,0,0,0,0,-10,36,14,41,8,9,4,0,0,164,164,154,154,163,161,167,166,211,190,214,225,238,220,510,204,208,218,219,32767,189,32767,355,177,173,188,194,270,236,217,191,213,188,205,270,207,255,230,197,244,32767,282,465,526,32767,1421,1025,5612]} 1. e4 {[%emt 0:00:00]} g6 {[%emt 0:00:10]} 2. d4 {[%emt 0:00:06]} Bg7 {[%emt 0:00:06]} 3. Nc3 {[%emt 0:00:12]} d6 {[%emt 0:00:06]} 4. Be3 {[%emt 0:00:20]} a6 {[%emt 0:00:08]} 5. Nf3 {[%emt 0:00:25]} b5 {[%emt 0:00:14]} 6. a4 {[%emt 0:00:21]} b4 {[%emt 0:04:07]} 7. Nd5 {[%emt 0:00:14] B06: Modern Defence} (7. Ne2 Bb7 8. Ng3 Nf6 9. Bd3 Nbd7 10. c3 c5 11. O-O O-O 12. h3 Qa5 13. Bd2 bxc3 14. bxc3 Qc7 {1-0 (41) Zhigalko,S (2655)-Petrosian,T (2625) Minsk 2015}) 7... a5 {[%emt 0:02:20]} 8. c3 {[%emt 0:00:18]} e6 {[%emt 0:03:56]} 9. Nf4 {[%emt 0:00:10]} bxc3 {[%emt 0:02:30]} 10. bxc3 {[%emt 0:00:06]} Nf6 {[%emt 0:00:20]} 11. Bb5+ {[%emt 0:08:22]} c6 $146 {[%emt 0:08:00]} ({Predecessor:} 11... Nbd7 12. e5 Ng4 13. exd6 cxd6 14. Qb3 Qe7 {0-1 (33) Klimenko,V (2082)-Sergeev Kaluga 2000}) 12. Bd3 {[%emt 0:00:06]} O-O {[%emt 0:00:11]} 13. h3 {[%emt 0:00:43]} Ba6 {[%emt 0:11:03]} 14. O-O {[%emt 0:02:40]} Bxd3 {[%emt 0:11:21]} 15. Qxd3 {[%emt 0:00:06]} e5 {[%emt 0:00:05]} 16. Ne2 {[%emt 0:06:37]} d5 {[%emt 0:05:18]} 17. dxe5 {[%emt 0:10:23]} dxe4 {[%emt 0:03:07]} 18. Qxd8 {[%emt 0:00:15]} Rxd8 {[%emt 0:00:06]} 19. Ng5 {[%emt 0:00:49]} Nd5 {[%emt 0:01:17]} 20. Bd4 {[%emt 0:02:04]} Re8 {[%emt 0:08:55]} 21. f4 {[%emt 0:00:12]} f5 {[%emt 0:02:22]} 22. exf6 $1 {[%emt 0:02:20]} Bxf6 {[%emt 0:02:07]} 23. c4 {[%emt 0:00:32]} c5 {[%emt 0:03:26]} 24. Bxf6 {[%emt 0:02:21]} ({Much weaker is} 24. Bxc5 Bxa1 25. cxd5 Nd7 $17) 24... Nxf6 {[%emt 0:01:35]} 25. f5 {[%emt 0:00:04]} Nbd7 {[%emt 0:05:29]} 26. fxg6 {[%emt 0:00:12]} hxg6 {[%emt 0:00:09]} 27. Rad1 {[%emt 0:02:20]} Ra6 {[%emt 0:05:03]} 28. Nc3 {[%emt 0:02:42]} e3 {[%emt 0:03:51]} 29. Rfe1 {[%emt 0:01:50]} Ne5 $2 {[%emt 0:01:46]} (29... Rb6 $11) 30. Rxe3 {[%emt 0:00:29]} Nxc4 {[%emt 0:00:22]} 31. Rxe8+ {[%emt 0:00:39]} Nxe8 {[%emt 0:00:10]} 32. Rd8 {[%emt 0:01:40]} Kf8 {[%emt 0:02:29]} 33. Rc8 {[%emt 0:00:26]} Rb6 {[%emt 0:06:30]} (33... Ncd6 $16 34. Rxc5 Nb7) 34. Nge4 {[%emt 0:08:41]} Rb3 {[%emt 0:07:13]} 35. Nd5 {[%emt 0:01:57]} ({But not} 35. Rxc5 Ned6) 35... Kf7 {[%emt 0:02:07]} 36. Rxc5 {[%emt 0:00:21]} Ned6 $2 {[%emt 0:01:33]} (36... Nb6 {was called for.} 37. Nxb6 (37. Rxa5 Nxd5 38. Rxd5 Ra3 $18) 37... Rxb6 38. Rxa5 Rb4) 37. Nxd6+ {[%emt 0:03:57]} (37. Rc7+ $142 Kf8 38. Nc5 Rb1+ 39. Kf2 Rb2+ 40. Ke1 Rb1+ 41. Kf2 Rb2+ 42. Kg3) 37... Nxd6 {[%emt 0:00:06]} 38. Rxa5 {[%emt 0:00:06]} Ra3 {[%emt 0:01:38]} 39. Ra6 {[%emt 0:00:39]} Nc4 {[%emt 0:00:46]} 40. Kh2 {[%emt 0:02:37]} Nb2 $2 {[%emt 0:01:04]} (40... g5 41. Nc7 g4) 41. Rf6+ {[%emt 0:02:29]} (41. a5 $142) 41... Kg7 {[%emt 0:00:06] [#]} 42. Rb6 $1 {[%emt 0:00:03]} Nxa4 {[%emt 0:00:24]} 43. Ra6 {[%emt 0:00:10]} Ra2 {[%emt 0:00:07]} 44. Nf4 {[%emt 0:00:12]} Nc3 {[%emt 0:00:59]} 45. Rxg6+ {[%emt 0:00:10]} Kf7 {[%emt 0:00:03]} 46. Rb6 {[%emt 0:01:28]} Rf2 {[%emt 0:00:31]} 47. Nd3 {[%emt 0:01:58]} Re2 {[%emt 0:00:42]} 48. Rb2 {[%emt 0:03:04]} Re3 {[%emt 0:00:02]} 49. Nf4 {[%emt 0:00:37]} Ne4 {[%emt 0:00:18]} 50. Rb7+ {[%emt 0:01:45]} Ke8 {[%emt 0:00:16]} 51. Re7+ {[%emt 0:00:53]} Kd8 {[%emt 0:00:31]} 52. Re5 {[%emt 0:01:06]} Re1 {[%emt 0:00:12]} 53. Ne6+ $18 {[%emt 0:00:41]} 1-0

[Event "Gibraltar Challengers B 2019"]
[Site "Caleta"]
[Date "2019.01.29"]
[Round "4"]
[White "Dolzhikova, Olga"]
[Black "Probst, Alexander"]
[Result "1-0"]
[ECO "C42"]
[WhiteElo "2224"]
[BlackElo "1976"]
[Annotator "ChessBase"]
[PlyCount "103"]
[EventDate "2019.01.18"]
[EventType "swiss"]
[EventCountry "GGB"]
[SourceTitle "playchess.com"]
[Source "ChessBase"]
[SourceQuality "1"]
[TimeControl "6600+10"]

1. e4 {[%emt 0:04:06]} e5 {[%emt 0:00:00]} 2. Nf3 {[%emt 0:00:11]} Nf6 {[%emt 0:00:08]} 3. Nxe5 {[%emt 0:00:23]} d6 {[%emt 0:00:10]} 4. Nf3 {[%emt 0:00:14]} Nxe4 {[%emt 0:00:10]} 5. Nc3 {[%emt 0:01:18]} Nf6 {[%emt 0:00:23]} 6. d4 {[%emt 0:00:15]} Be7 {[%emt 0:00:13]} 7. Bd3 {[%emt 0:00:23]} O-O {[%emt 0:02:27]} 8. h3 {[%emt 0:02:25]} Re8 {[%emt 0:00:36]} 9. Be3 {[%emt 0:00:06]} d5 {[%emt 0:02:54]} 10. O-O {[%emt 0:06:41]} Be6 {[%emt 0:05:36]} 11. Ne5 {[%emt 0:04:47]} Qc8 {[%emt 0:08:33]} 12. f4 {[%emt 0:22:21]} c5 {[%emt 0:04:07]} 13. f5 {[%emt 0:02:08]} Bd7 {[%emt 0:00:16]} 14. Kh1 {[%emt 0:11:36]} cxd4 {[%emt 0:04:40]} 15. Bxd4 {[%emt 0:01:29]} Nc6 {[%emt 0:03:12]} 16. Nxd7 {[%emt 0:04:55]} Qxd7 {[%emt 0:01:46]} 17. Bf2 {[%emt 0:01:21]} Rad8 {[%emt 0:06:09]} 18. Qd2 {[%emt 0:09:07]} Bd6 {[%emt 0:06:12]} 19. Rae1 {[%emt 0:08:26]} Bb8 {[%emt 0:04:00]} 20. Bh4 {[%emt 0:07:37]} Qd6 {[%emt 0:01:58]} 21. g4 {[%emt 0:00:05]} a6 {[%emt 0:09:42]} 22. Qg2 {[%emt 0:01:37]} Nb4 {[%emt 0:07:27]} 23. a3 {[%emt 0:06:10]} Nxd3 {[%emt 0:00:33]} 24. cxd3 {[%emt 0:00:03]} b5 {[%emt 0:06:01]} 25. Rxe8+ {[%emt 0:08:45]} Rxe8 {[%emt 0:00:14]} 26. Bxf6 {[%emt 0:00:47]} Qxf6 {[%emt 0:00:17]} 27. Nxd5 {[%emt 0:00:17]} Qe5 {[%emt 0:03:41]} 28. f6 {[%emt 0:00:21]} Re6 {[%emt 0:07:50]} 29. Ne7+ {[%emt 0:01:51]} Kf8 {[%emt 0:00:53]} 30. fxg7+ {[%emt 0:00:12]} Kxg7 {[%emt 0:00:17]} 31. Nf5+ {[%emt 0:00:23]} Kf8 {[%emt 0:01:34]} 32. d4 {[%emt 0:00:51]} Qe2 {[%emt 0:01:44]} 33. Qxe2 {[%emt 0:01:22]} Rxe2 {[%emt 0:00:11]} 34. Rc1 {[%emt 0:00:05]} Re8 {[%emt 0:01:07]} 35. Rc2 {[%emt 0:00:21]} f6 {[%emt 0:00:46]} 36. Kg2 {[%emt 0:00:04]} Kf7 {[%emt 0:00:33]} 37. Kf3 {[%emt 0:00:02]} Re1 {[%emt 0:00:31]} 38. Rc8 {[%emt 0:00:14]} Bh2 {[%emt 0:00:38]} 39. Rc2 {[%emt 0:01:07]} Bb8 {[%emt 0:00:38]} 40. Re2 {[%emt 0:00:07]} Rxe2 {[%emt 0:00:31]} 41. Kxe2 {[%emt 0:00:01]} Ke6 {[%emt 0:00:27]} 42. Kd3 {[%emt 0:00:04]} Bf4 {[%emt 0:03:12]} 43. b3 {[%emt 0:00:08]} Bc1 {[%emt 0:01:07]} 44. a4 {[%emt 0:00:02]} bxa4 {[%emt 0:02:30]} 45. bxa4 {[%emt 0:00:01]} Kd5 {[%emt 0:00:59]} 46. Ng3 {[%emt 0:00:39]} Bb2 {[%emt 0:01:05]} 47. Ne2 {[%emt 0:00:02]} a5 {[%emt 0:00:24]} 48. Nf4+ {[%emt 0:00:06]} Kd6 {[%emt 0:00:21]} 49. Ke4 {[%emt 0:00:06]} Bc3 {[%emt 0:01:29]} 50. Nd5 {[%emt 0:00:08]} f5+ {[%emt 0:01:30]} 51. gxf5 {[%emt 0:00:02]} Be1 {[%emt 0:00:26]} 52. Ne3 {[%emt 0:00:08]} 1-0

[Event "Gibraltar Challengers B 2019"]
[Site "Caleta"]
[Date "2019.01.29"]
[Round "4"]
[White "Elishev, Ivan"]
[Black "Orndahl, Markus"]
[Result "0-1"]
[ECO "B02"]
[WhiteElo "2224"]
[BlackElo "2173"]
[Annotator "RC"]
[PlyCount "153"]
[EventDate "2019.01.18"]
[EventType "swiss"]
[EventCountry "GGB"]
[SourceTitle "playchess.com"]
[Source "ChessBase"]
[SourceQuality "1"]
[TimeControl "6600+10"]

1. e4 {[%emt 0:00:00]} Nf6 {[%emt 0:03:52]} 2. Nc3 {[%emt 0:02:25]} d5 {[%emt 0:00:24]} 3. e5 {[%emt 0:01:33]} Nfd7 {[%emt 0:00:07]} 4. e6 {[%emt 0:08:43]} fxe6 {[%emt 0:01:33]} 5. d4 {[%emt 0:00:01]} c5 {[%emt 0:10:26]} 6. dxc5 {[%emt 0:09:12]} Nc6 {[%emt 0:03:45]} 7. Nf3 {[%emt 0:01:52]} a6 {[%emt 0:28:02]} 8. h4 {[%emt 0:09:44]} Qa5 {[%emt 0:09:04]} 9. a3 {[%emt 0:14:06]} Qxc5 {[%emt 0:01:35]} 10. Be3 {[%emt 0:10:08]} Qa5 {[%emt 0:02:02]} 11. h5 {[%emt 0:01:24]} Nf6 {[%emt 0:09:22]} 12. b4 {[%emt 0:05:36]} Qc7 {[%emt 0:02:50]} 13. Qd2 {[%emt 0:06:00]} Bd7 {[%emt 0:04:51]} 14. b5 {[%emt 0:04:59]} Ne5 {[%emt 0:03:29]} 15. Nxe5 {[%emt 0:03:00]} Qxe5 {[%emt 0:00:03]} 16. bxa6 {[%emt 0:02:21]} bxa6 {[%emt 0:00:19]} 17. Qd4 {[%emt 0:00:29]} Qc7 {[%emt 0:01:27]} 18. Bf4 {[%emt 0:00:27]} Qa5 {[%emt 0:00:20]} 19. Qb4 {[%emt 0:04:01]} Qxb4 20. axb4 {[%emt 0:00:01]} Rc8 {[%emt 0:04:43]} 21. Bd2 {[%emt 0:12:21]} d4 {[%emt 0:01:13]} 22. Na4 {[%emt 0:00:08]} Bb5 {[%emt 0:10:01]} 23. Nc5 {[%emt 0:00:50]} e5 {[%emt 0:00:27]} 24. Bxb5+ {[%emt 0:04:57]} axb5 {[%emt 0:00:01]} 25. Ra5 {[%emt 0:01:51]} Nd7 {[%emt 0:04:19]} 26. Ne6 {[%emt 0:03:28]} h6 {[%emt 0:00:25]} 27. Rh3 {[%emt 0:00:48]} Kf7 {[%emt 0:03:50]} 28. Ra6 {[%emt 0:00:05]} Nf6 {[%emt 0:00:19]} 29. Kd1 {[%emt 0:00:47]} Rg8 {[%emt 0:00:25]} 30. Rf3 {[%emt 0:00:18]} g6 {[%emt 0:00:19]} 31. Nxf8 {[%emt 0:00:44]} Rcxf8 {[%emt 0:00:28]} 32. Bxh6 {[%emt 0:00:06]} Ra8 {[%emt 0:00:01]} 33. Rb6 {[%emt 0:01:01]} Rab8 {[%emt 0:00:18]} 34. Ra6 {[%emt 0:00:46]} gxh5 {[%emt 0:00:14]} 35. g3 {[%emt 0:00:10]} Ra8 {[%emt 0:00:34]} 36. Rb6 {[%emt 0:00:06]} Rgb8 {[%emt 0:00:47]} 37. Rc6 {[%emt 0:00:15]} Rc8 {[%emt 0:00:02]} 38. Rxc8 {[%emt 0:00:38]} Rxc8 {[%emt 0:00:01]} 39. Ra3 {[%emt 0:00:34]} Rc4 {[%emt 0:00:26]} 40. Bd2 {[%emt 0:00:06]} Ne4 {[%emt 0:00:35]} 41. Be1 {[%emt 0:00:01]} Nd6 {[%emt 0:00:32]} 42. Ra8 {[%emt 0:00:03]} Rc8 {[%emt 0:00:03]} 43. Ra7 {[%emt 0:00:04]} Ke6 {[%emt 0:00:11]} 44. f3 {[%emt 0:00:09]} Nf5 {[%emt 0:00:46]} 45. Kd2 {[%emt 0:00:11]} Ne3 {[%emt 0:00:06]} 46. Ra2 {[%emt 0:00:18]} Kf5 {[%emt 0:00:47]} 47. Kd3 {[%emt 0:00:01]} Nc4 {[%emt 0:01:16]} 48. Ra7 {[%emt 0:00:19]} Ke6 {[%emt 0:00:05]} 49. Ra6+ {[%emt 0:00:04]} Nd6 {[%emt 0:00:02]} 50. Ra7 {[%emt 0:00:14]} Rf8 {[%emt 0:00:08]} 51. Ke2 {[%emt 0:00:03]} Rf7 {[%emt 0:00:05]} 52. Ra8 {[%emt 0:00:07]} Kd5 {[%emt 0:00:04]} 53. Rh8 {[%emt 0:00:04]} Rf5 {[%emt 0:00:06]} 54. Rh7 {[%emt 0:00:30]} e6 {[%emt 0:00:21]} 55. Rd7 {[%emt 0:00:03]} Rf7 {[%emt 0:00:52]} 56. Rd8 {[%emt 0:00:01]} Kc6 {[%emt 0:00:17]} 57. Rh8 {[%emt 0:00:03]} Rf5 {[%emt 0:00:02]} 58. Ra8 {[%emt 0:00:18]} Kb7 {[%emt 0:00:38]} 59. Rd8 {[%emt 0:00:12]} Kc7 {[%emt 0:00:00]} 60. Ra8 {[%emt 0:00:15]} Kd7 {[%emt 0:00:10]} 61. Ra7+ {[%emt 0:00:07]} Ke8 {[%emt 0:00:10]} 62. Rc7 {[%emt 0:00:22]} Rf7 {[%emt 0:00:06]} 63. Rc5 {[%emt 0:00:11]} Rf5 {[%emt 0:00:06]} 64. Rc7 {[%emt 0:00:07]} Kd8 {[%emt 0:00:21]} 65. Rh7 {[%emt 0:00:14]} Ke8 {[%emt 0:00:04]} 66. Bd2 {[%emt 0:00:14]} Nf7 {[%emt 0:00:16]} 67. Rg7 {[%emt 0:00:11]} Rf6 {[%emt 0:00:09]} 68. Rg8+ {[%emt 0:00:08]} Kd7 {[%emt 0:00:04]} 69. Rb8 {[%emt 0:00:14]} Nd6 {[%emt 0:00:08]} 70. Rh8 {[%emt 0:00:01]} Rf5 {[%emt 0:00:03]} 71. Rh7+ {[%emt 0:00:13]} Kc6 {[%emt 0:00:02]} 72. Re7 {[%emt 0:00:02]} Kd5 {[%emt 0:00:14]} 73. Rc7 {[%emt 0:00:03]} Nc4 {[%emt 0:00:06]} 74. Be1 {[%emt 0:00:12]} Kd6 {[%emt 0:00:14]} 75. Rc5 {[%emt 0:00:14]} e4 {[%emt 0:00:18]} 76. Rxf5 {[%emt 0:00:51]} exf5 {[%emt 0:00:02]} 77. f4 {[%emt 0:00:15] Ke5 [%emt 00:00:09]} 0-1